bitfinex-derivatives/quotes_BTCF0:USTF0_20241203
["timestamp","ask_amount","ask_price","bid_price","bid_amount"]
[1733213276566,0.24009586,95692.0,95691.0,0.07515408]
[1733213277463,0.33632372,95692.0,95691.0,0.07515408]
[1733213278965,0.24009586,95692.0,95691.0,0.07515408]
[1733213280366,0.24009586,95692.0,95691.0,0.43595408]
[1733213280563,0.20689586,95692.0,95691.0,0.43595408]
[1733213281860,0.3031213,95692.0,95691.0,0.43595408]
[1733213289970,0.61652712,95692.0,95691.0,0.43595408]
[1733213290371,0.3031213,95692.0,95691.0,0.43595408]
[1733213290975,0.3031213,95692.0,95691.0,0.07515408]
[1733213291280,0.3031213,95692.0,95691.0,0.21075408]
[1733213291671,0.30312281,95692.0,95691.0,0.21075408]
[1733213292066,0.52033064,95692.0,95691.0,0.21075408]
[1733213292267,0.35539281,95692.0,95691.0,0.054238]
[1733213292467,0.35539281,95692.0,95682.0,0.0026]
[1733213292468,0.71619637,95692.0,95682.0,0.0026]
[1733213292667,0.41307,95683.0,95682.0,0.054843]
[1733213292876,0.39709976,95683.0,95682.0,0.052243]
[1733213293083,0.15619257,95683.0,95682.0,0.052243]
[1733213293269,0.25242308,95683.0,95682.0,0.083443]
[1733213293574,0.50102233,95688.0,95682.0,0.083443]
[1733213293780,0.09623051,95687.0,95686.0,0.052241]
[1733213294075,0.25350792,95687.0,95686.0,0.187841]
[1733213294802,0.25350792,95687.0,95686.0,0.188841]
[1733213295196,0.27962792,95687.0,95686.0,0.188841]
[1733213295397,0.18339741,95687.0,95686.0,0.188841]
[1733213295794,0.18339741,95687.0,95686.0,0.189841]
[1733213295995,0.18539741,95687.0,95686.0,0.189841]
[1733213296695,0.19375741,95687.0,95686.0,0.189841]
[1733213297199,0.19375741,95687.0,95686.0,0.188841]
[1733213297392,0.19575741,95687.0,95686.0,0.188841]
[1733213297976,0.20378741,95687.0,95686.0,0.188841]
[1733213300678,0.19841785,95687.0,95686.0,0.188841]
[1733213301880,0.20677785,95687.0,95686.0,0.188841]
[1733213303785,0.20677785,95687.0,95686.0,0.0741547]
[1733213303990,0.20677785,95687.0,95686.0,0.2097547]
[1733213307384,0.1,95700.0,95699.0,0.052234]
[1733213307585,0.1,95700.0,95699.0,0.548634]
[1733213307789,0.25754787,95700.0,95699.0,0.548634]
[1733213308690,0.25954787,95700.0,95699.0,0.548634]
[1733213310293,0.06373547,95700.0,95699.0,0.548634]
[1733213312393,0.00228578,95700.0,95699.0,0.57164932]
[1733213312592,0.05227,95714.0,95699.0,0.57164932]
[1733213312593,0.05227,95717.0,95699.0,0.57164932]
[1733213312787,0.09620784,95716.0,95709.0,0.3608]
[1733213312983,0.15734716,95716.0,95715.0,0.052225]
[1733213313194,0.25355483,95716.0,95715.0,0.052225]
[1733213314686,0.25355483,95716.0,95715.0,0.053225]
[1733213316385,0.56679802,95716.0,95715.0,0.053225]
[1733213316591,0.25355483,95716.0,95715.0,0.053225]
[1733213316792,0.56679802,95716.0,95715.0,0.053225]
[1733213316995,0.25355483,95716.0,95715.0,0.053225]
[1733213317300,0.56679101,95716.0,95715.0,0.07663373]
[1733213318294,0.25354782,95716.0,95715.0,0.07663373]
[1733213318492,0.15734716,95716.0,95715.0,0.07663373]
[1733213319586,0.25354782,95716.0,95715.0,0.07663373]
[1733213320595,0.15734716,95716.0,95715.0,0.09754289]
[1733213321095,0.2535415,95716.0,95715.0,0.09754289]
[1733213321304,0.15734716,95716.0,95715.0,0.09754289]
[1733213321599,0.15734716,95716.0,95715.0,0.09854289]
[1733213322687,0.11609721,95716.0,95715.0,0.09854289]
[1733213322888,0.31324319,95725.0,95724.0,0.1402928]
[1733213323092,0.31324319,95725.0,95724.0,0.6365728]
[1733213323093,0.09619076,95725.0,95724.0,0.6365728]
[1733213323291,0.2521353,95725.0,95724.0,0.6365728]
[1733213324595,0.15594454,95725.0,95724.0,0.6365728]
[1733213325000,0.16455454,95726.0,95724.0,0.6365728]
[1733213325200,0.15620454,95725.0,95724.0,0.6365728]
[1733213326099,0.15620454,95725.0,95724.0,0.0880728]
[1733213326293,0.25240183,95725.0,95718.0,0.0026]
[1733213326607,0.12649729,95724.0,95718.0,0.054823]
[1733213326899,0.12649729,95724.0,95720.0,0.052222]
[1733213326900,0.25371784,95723.0,95720.0,0.052222]
[1733213327098,0.09620541,95722.0,95720.0,0.052222]
[1733213327503,0.09620541,95722.0,95718.0,0.0026]
[1733213327504,0.0303,95724.0,95722.0,0.052221]
[1733213327898,0.15751243,95723.0,95722.0,0.052221]
[1733213328603,0.25371538,95723.0,95722.0,0.052221]
[1733213329991,0.25371538,95723.0,95718.0,0.001]
[1733213330207,0.25371538,95723.0,95720.0,0.001]
[1733213330208,0.23168295,95722.0,95720.0,0.001]
[1733213330519,0.25382105,95721.0,95720.0,0.001]
[1733213330708,0.25382105,95721.0,95713.0,0.0026]
[1733213331005,0.31250264,95719.0,95713.0,0.0026]
[1733213331196,0.09620295,95718.0,95717.0,0.052224]
[1733213331398,0.15582541,95718.0,95717.0,0.052224]
[1733213331599,0.40869798,95718.0,95717.0,0.052224]
[1733213332008,0.25278594,95718.0,95717.0,0.052224]
[1733213332801,0.52174091,95718.0,95717.0,0.052224]
[1733213333106,0.30505594,95718.0,95717.0,0.052224]
[1733213333604,0.25278594,95718.0,95717.0,0.053224]
[1733213333810,0.25278594,95718.0,95717.0,0.085624]
[1733213334606,0.25278594,95718.0,95717.0,0.086624]
[1733213336717,0.25278165,95718.0,95717.0,0.086624]
[1733213337210,0.15658299,95718.0,95717.0,0.086624]
[1733213337615,0.00835,95726.0,95717.0,0.086624]
[1733213337616,0.15612798,95725.0,95724.0,0.05222]
[1733213337812,0.25232056,95725.0,95724.0,0.05222]
[1733213338015,0.09619258,95725.0,95724.0,0.05222]
[1733213338408,0.09619258,95725.0,95724.0,0.41302]
[1733213338409,0.25377452,95725.0,95724.0,0.41302]
[1733213339608,0.25377452,95725.0,95724.0,0.43731216]
[1733213340604,0.15758194,95725.0,95724.0,0.43731216]
[1733213341009,0.15714509,95728.0,95724.0,0.38509216]
[1733213341205,0.0313,95729.0,95727.0,0.052218]
[1733213341610,0.15678397,95728.0,95727.0,0.052218]
[1733213342216,0.25297221,95728.0,95727.0,0.052218]
[1733213342406,0.26132221,95728.0,95727.0,0.052218]
[1733213344419,0.47802189,95728.0,95727.0,0.052218]
[1733213344615,0.26132221,95728.0,95727.0,0.052218]
[1733213345611,0.16513397,95728.0,95727.0,0.052218]
[1733213346208,0.26132299,95728.0,95727.0,0.052218]
[1733213347418,0.16513397,95728.0,95727.0,0.052218]
[1733213347817,0.21740397,95728.0,95727.0,0.052218]
[1733213350322,0.31359655,95728.0,95727.0,0.052218]
[1733213356929,0.77125139,95728.0,95727.0,0.052218]
[1733213357122,0.65842631,95728.0,95727.0,0.052218]
[1733213357325,0.31359655,95728.0,95727.0,0.052218]
[1733213358120,0.21740397,95728.0,95727.0,0.052218]
[1733213358920,0.31358869,95728.0,95727.0,0.052218]
[1733213359121,0.3135889,95728.0,95727.0,0.052218]
[1733213359332,0.21740397,95728.0,95727.0,0.052218]
[1733213361839,0.31359032,95728.0,95727.0,0.052218]
[1733213362036,0.21740397,95728.0,95727.0,0.052218]
[1733213362338,0.06062,95728.0,95727.0,0.052218]
[1733213362540,0.15680635,95728.0,95727.0,0.052218]
[1733213362731,0.31367236,95728.0,95727.0,0.052218]
[1733213364439,0.15680635,95728.0,95727.0,0.052218]
[1733213364644,0.15680996,95728.0,95727.0,0.187658]
[1733213365337,0.15680996,95728.0,95727.0,0.052218]
[1733213365536,0.15680996,95728.0,95727.0,0.187658]
[1733213366840,0.37392437,95728.0,95727.0,0.187658]
[1733213367029,0.47011433,95728.0,95727.0,0.187658]
[1733213367228,0.15680996,95728.0,95727.0,0.187658]
[1733213370626,0.06062,95728.0,95727.0,0.187658]
[1733213374438,0.06062,95728.0,95727.0,0.052218]
[1733213374641,0.06062,95728.0,95727.0,0.190258]
[1733213376138,0.1568071,95728.0,95727.0,0.190258]
[1733213376530,0.1568071,95728.0,95727.0,0.052218]
[1733213376842,0.31249481,95728.0,95727.0,0.190258]
[1733213377542,0.31249481,95728.0,95727.0,0.052218]
[1733213379336,0.21630771,95728.0,95727.0,0.052218]
[1733213382645,0.60865431,95750.0,95724.0,0.1832407]
[1733213382646,0.05227,95737.0,95736.0,0.052217]
[1733213382944,0.25330965,95737.0,95736.0,0.052217]
[1733213383149,0.1571238,95737.0,95736.0,0.413017]
[1733213383440,0.08774509,95757.0,95755.0,0.052207]
[1733213383640,0.5254429,95756.0,95755.0,0.052207]
[1733213383845,0.68239285,95756.0,95755.0,0.052207]
[1733213384442,0.91450847,95756.0,95755.0,0.052207]
[1733213384648,0.57001995,95756.0,95755.0,0.053207]
[1733213385140,0.57001995,95756.0,95755.0,0.001]
[1733213385340,0.05227,95754.0,95748.0,0.0026]
[1733213385545,0.41307,95749.0,95736.0,0.053217]
[1733213385745,0.41307,95737.0,95736.0,0.001]
[1733213385941,0.83852604,95737.0,95736.0,0.052217]
[1733213386140,0.68217875,95737.0,95736.0,0.052217]
[1733213386348,0.56977441,95737.0,95736.0,0.052217]
[1733213386750,0.56977441,95737.0,95736.0,0.053217]
[1733213387446,0.20897441,95737.0,95736.0,0.053217]
[1733213388048,0.32137714,95737.0,95736.0,0.053217]
[1733213388361,0.41757114,95737.0,95736.0,0.053217]
[1733213388557,0.64959028,95737.0,95736.0,0.053217]
[1733213388855,0.20897441,95737.0,95736.0,0.053217]
[1733213389354,0.30515621,95737.0,95736.0,0.053217]
[1733213389554,0.30515664,95737.0,95736.0,0.053217]
[1733213389859,0.20897441,95737.0,95736.0,0.053217]
[1733213396467,0.30516888,95737.0,95736.0,0.053217]
[1733213396677,0.30516898,95737.0,95736.0,0.053217]
[1733213397063,0.41757174,95737.0,95736.0,0.053217]
[1733213397271,0.41757174,95737.0,95736.0,0.001]
[1733213397473,0.41757174,95737.0,95736.0,0.053217]
[1733213397776,0.36530174,95737.0,95736.0,0.053217]
[1733213398678,0.25289898,95737.0,95736.0,0.053217]
[1733213399271,0.36531389,95737.0,95735.0,0.052217]
[1733213399576,0.94467648,95736.0,95735.0,0.052217]
[1733213399764,0.83226157,95736.0,95735.0,0.052217]
[1733213399966,0.64511022,95736.0,95735.0,0.052217]
[1733213400367,0.64511022,95736.0,95735.0,0.053217]
[1733213402074,0.64512036,95736.0,95735.0,0.053217]
[1733213402975,0.54891565,95736.0,95735.0,0.053217]
[1733213405974,0.64511326,95736.0,95735.0,0.053217]
[1733213406974,0.6451154,95736.0,95735.0,0.053217]
[1733213407976,0.75752115,95736.0,95735.0,0.053217]
[1733213408171,0.6451154,95736.0,95735.0,0.053217]
[1733213411185,0.54891565,95736.0,95735.0,0.053217]
[1733213411385,0.64511419,95736.0,95735.0,0.053217]
[1733213411770,0.6451146,95736.0,95735.0,0.053217]
[1733213412776,0.60118565,95736.0,95735.0,0.053217]
[1733213414916,0.69738638,95736.0,95735.0,0.053217]
[1733213415118,0.69963638,95736.0,95735.0,0.053217]
[1733213416328,0.05227,95734.0,95731.0,0.05222]
[1733213416521,0.14841973,95733.0,95731.0,0.05222]
[1733213416829,0.20861912,95732.0,95731.0,0.05222]
[1733213416998,0.12780489,95732.0,95731.0,0.05222]
[1733213417308,0.33602621,95732.0,95731.0,0.05222]
[1733213418054,0.38824521,95732.0,95731.0,0.05222]
[1733213418205,0.39024521,95732.0,95731.0,0.05222]
[1733213419288,0.39024521,95732.0,95731.0,0.05322]
[1733213419289,0.39324521,95732.0,95731.0,0.05322]
[1733213420285,0.39124521,95732.0,95731.0,0.05322]
[1733213420484,0.39124521,95732.0,95731.0,0.05422]
[1733213420485,0.39524521,95732.0,95731.0,0.05422]
[1733213420881,0.39124521,95732.0,95731.0,0.05322]
[1733213421193,0.39524521,95732.0,95731.0,0.05422]
[1733213421394,0.29904032,95732.0,95731.0,0.05422]
[1733213421586,0.39524724,95732.0,95731.0,0.05422]
[1733213421986,0.50766397,95732.0,95731.0,0.05422]
[1733213422680,0.39524724,95732.0,95731.0,0.05422]
[1733213422878,0.50766398,95732.0,95731.0,0.05422]
[1733213423881,0.50766398,95732.0,95731.0,0.002]
[1733213426696,0.39524724,95732.0,95731.0,0.054221]
[1733213427603,0.36364724,95732.0,95731.0,0.054221]
[1733213427795,0.61314835,95732.0,95731.0,0.054221]
[1733213428688,0.50072724,95732.0,95731.0,0.054221]
[1733213428899,0.61314552,95732.0,95731.0,0.054221]
[1733213429083,0.50072724,95732.0,95731.0,0.054221]
[1733213430691,0.50072724,95732.0,95731.0,0.002]
[1733213430892,0.6131445,95732.0,95731.0,0.002]
[1733213431090,0.50072724,95732.0,95731.0,0.002]
[1733213431399,0.50073048,95732.0,95731.0,0.002]
[1733213431693,0.50298048,95732.0,95731.0,0.002]
[1733213435201,0.61540231,95732.0,95731.0,0.002]
[1733213438410,0.50298048,95732.0,95731.0,0.002]
[1733213440898,0.45076148,95732.0,95718.0,0.052228]
[1733213441097,0.3608,95719.0,95718.0,0.052228]
[1733213441295,0.56942917,95719.0,95718.0,0.052228]
[1733213441491,0.72561095,95719.0,95718.0,0.052228]
[1733213442112,0.72561095,95719.0,95718.0,0.053228]
[1733213442794,0.77788095,95719.0,95718.0,0.001]
[1733213442999,0.77788095,95719.0,95704.0,0.033]
[1733213443000,1.27420095,95719.0,95704.0,0.0026]
[1733213443201,0.052236,95704.0,95702.0,0.0317]
[1733213443403,0.09621016,95703.0,95702.0,0.0317]
[1733213443705,0.25391456,95703.0,95702.0,0.0317]
[1733213444407,0.1577044,95703.0,95702.0,0.0317]
[1733213444703,0.1587044,95703.0,95702.0,0.0317]
[1733213444908,0.001,95703.0,95702.0,0.0317]
[1733213445105,0.15741037,95703.0,95702.0,0.0317]
[1733213446600,0.15966037,95703.0,95702.0,0.0317]
[1733213446813,0.31843931,95703.0,95702.0,0.0317]
[1733213447006,0.20599265,95703.0,95702.0,0.0317]
[1733213447703,0.10976037,95703.0,95702.0,0.0317]
[1733213450507,0.20597985,95703.0,95702.0,0.0317]
[1733213452604,0.10976037,95703.0,95702.0,0.0317]
[1733213452805,0.20598217,95703.0,95702.0,0.0317]
[1733213454502,0.10976037,95703.0,95702.0,0.0317]
[1733213457511,0.10976037,95703.0,95702.0,0.10485234]
[1733213459514,0.20597944,95703.0,95702.0,0.10485234]
[1733213460115,0.10976037,95703.0,95702.0,0.10485234]
[1733213460420,0.10976037,95703.0,95702.0,0.07315234]
[1733213469020,0.0026,95714.0,95702.0,0.38171534]
[1733213469220,0.36172,95721.0,95716.0,0.05223]
[1733213469221,0.0026,95717.0,95716.0,0.05223]
[1733213469523,0.15643146,95720.0,95713.0,0.052231]
[1733213469722,0.15643146,95717.0,95716.0,0.05223]
[1733213469916,0.3608,95721.0,95720.0,0.052227]
[1733213470319,0.51723146,95721.0,95720.0,0.052227]
[1733213470920,0.52123146,95721.0,95720.0,0.052227]
[1733213472623,0.52523146,95721.0,95720.0,0.053227]
[1733213473823,0.52523146,95721.0,95720.0,0.001]
[1733213474215,0.73387397,95721.0,95720.0,0.001]
[1733213476320,0.62144619,95721.0,95720.0,0.001]
[1733213477832,0.57750146,95721.0,95720.0,0.001]
[1733213478821,0.67370825,95721.0,95720.0,0.001]
[1733213479023,0.67370935,95721.0,95720.0,0.001]
[1733213480925,0.78612721,95721.0,95720.0,0.001]
[1733213481516,0.67370935,95721.0,95720.0,0.001]
[1733213484022,0.78613073,95721.0,95720.0,0.001]
[1733213484221,0.57750146,95721.0,95720.0,0.001]
[1733213487223,0.78613635,95721.0,95720.0,0.001]
[1733213488036,0.67371332,95721.0,95720.0,0.001]
[1733213489736,0.57750146,95721.0,95720.0,0.001]
[1733213491838,0.67371826,95721.0,95720.0,0.001]
[1733213492227,0.57750146,95721.0,95720.0,0.001]
[1733213492937,0.67371792,95721.0,95720.0,0.001]
[1733213493735,0.67371166,95721.0,95720.0,0.001]
[1733213494441,0.78613226,95721.0,95720.0,0.001]
[1733213495236,0.67371166,95721.0,95720.0,0.001]
[1733213498235,0.78613178,95721.0,95720.0,0.001]
[1733213498836,0.78613115,95721.0,95720.0,0.001]
[1733213500539,0.31291103,95721.0,95720.0,0.001]
[1733213501146,0.42532582,95721.0,95720.0,0.001]
[1733213501345,0.31291103,95721.0,95720.0,0.001]
[1733213501841,0.42532685,95721.0,95720.0,0.001]
[1733213502949,0.31291103,95721.0,95720.0,0.001]
[1733213503744,0.42532113,95721.0,95720.0,0.001]
[1733213504141,0.31290641,95721.0,95720.0,0.001]
[1733213508852,0.31290638,95721.0,95720.0,0.001]
[1733213509354,0.31290638,95721.0,95720.0,0.053227]
[1733213511248,0.21670146,95721.0,95720.0,0.053227]
[1733213512248,0.42532751,95721.0,95720.0,0.053227]
[1733213512449,0.42532778,95721.0,95720.0,0.053227]
[1733213512651,0.61299478,95721.0,95720.0,0.053227]
[1733213512854,0.56076778,95721.0,95707.0,0.052234]
[1733213513155,0.3608,95711.0,95707.0,0.052234]
[1733213513356,0.3608,95711.0,95708.0,0.052234]
[1733213513357,0.09620734,95710.0,95708.0,0.052234]
[1733213513543,0.25336143,95710.0,95708.0,0.052234]
[1733213513746,0.09621775,95709.0,95708.0,0.052234]
[1733213514249,0.25371239,95709.0,95708.0,0.052234]
[1733213515547,0.25771239,95709.0,95708.0,0.052234]
[1733213516456,0.37014618,95709.0,95708.0,0.052234]
[1733213516756,0.37214618,95709.0,95708.0,0.052234]
[1733213517546,0.39734791,95709.0,95708.0,0.052234]
[1733213517748,0.39734791,95709.0,95699.0,0.00156723]
[1733213517749,0.39735008,95709.0,95699.0,0.00156723]
[1733213517951,0.3608,95700.0,95699.0,0.00156723]
[1733213518155,0.56945371,95700.0,95699.0,0.05380623]
[1733213518460,0.72669769,95700.0,95699.0,0.05380623]
[1733213518649,0.61425205,95700.0,95699.0,0.05380623]
[1733213519449,0.72669825,95700.0,95699.0,0.05380623]
[1733213519653,0.61425205,95700.0,95699.0,0.053239]
[1733213519850,0.75900211,95700.0,95699.0,0.053239]
[1733213520250,0.75900211,95700.0,95699.0,0.052239]
[1733213520455,0.75900211,95700.0,95699.0,0.053239]
[1733213520846,0.75901195,95700.0,95699.0,0.053239]
[1733213521262,0.64655205,95700.0,95699.0,0.053239]
[1733213523364,0.61425205,95700.0,95699.0,0.053239]
[1733213527068,0.61427518,95700.0,95699.0,0.053239]
[1733213527675,0.5180343,95700.0,95699.0,0.053239]
[1733213527966,0.61427525,95700.0,95699.0,0.053239]
[1733213528167,0.66651525,95700.0,95699.0,0.053239]
[1733213528472,0.5702743,95700.0,95699.0,0.053239]
[1733213529267,0.5742743,95700.0,95699.0,0.052239]
[1733213529766,0.5792743,95700.0,95699.0,0.053239]
[1733213530276,0.6755067,95700.0,95699.0,0.053239]
[1733213532179,0.67550677,95700.0,95699.0,0.053239]
[1733213532865,0.67550677,95700.0,95699.0,0.086439]
[1733213533269,0.5792743,95700.0,95699.0,0.086439]
[1733213533681,0.2184743,95700.0,95699.0,0.086439]
[1733213534173,0.2184743,95700.0,95699.0,0.119339]
[1733213535378,0.2184743,95700.0,95699.0,0.118339]
[1733213535379,0.2164743,95700.0,95699.0,0.118339]
[1733213535773,0.2114743,95700.0,95699.0,0.118339]
[1733213535973,0.2164743,95700.0,95699.0,0.118339]
[1733213536177,0.2174743,95700.0,95699.0,0.118339]
[1733213537785,0.1652343,95700.0,95699.0,0.118339]
[1733213542291,0.26145661,95700.0,95699.0,0.118339]
[1733213542994,0.26145661,95700.0,95699.0,0.253739]
[1733213543687,0.26145661,95700.0,95699.0,0.085439]
[1733213543688,0.62225661,95700.0,95699.0,0.085439]
[1733213543891,0.62225661,95700.0,95699.0,0.052239]
[1733213548990,0.5260343,95700.0,95699.0,0.052239]
[1733213553289,0.1652343,95700.0,95699.0,0.052239]
[1733213558405,0.1652343,95700.0,95679.0,0.1369714]
[1733213558605,0.3608,95692.0,95691.0,0.052243]
[1733213558907,0.51844187,95692.0,95691.0,0.052243]
[1733213560007,0.51944187,95692.0,95691.0,0.052243]
[1733213561498,0.52144187,95692.0,95691.0,0.052243]
[1733213563108,0.52144187,95692.0,95686.0,0.0731629]
[1733213563311,0.88224187,95692.0,95686.0,0.0209169]
[1733213563608,0.052243,95691.0,95686.0,0.052246]
[1733213564007,0.15698629,95690.0,95686.0,0.052246]
[1733213564407,0.15698629,95690.0,95688.0,0.052244]
[1733213565414,0.20923029,95690.0,95688.0,0.052244]
[1733213565916,0.053244,95690.0,95688.0,0.052244]
[1733213566213,0.15682824,95689.0,95688.0,0.052244]
[1733213567606,0.51762824,95689.0,95688.0,0.052244]
[1733213568012,0.52062824,95689.0,95688.0,0.052244]
[1733213568211,0.5466555,95689.0,95688.0,0.052244]
[1733213568412,0.5476555,95689.0,95688.0,0.052244]
[1733213570602,0.5476555,95689.0,95679.0,8.386e-05]
[1733213570603,0.052249,95680.0,95679.0,8.386e-05]
[1733213570808,0.413049,95680.0,95679.0,8.386e-05]
[1733213571003,0.56896294,95680.0,95679.0,8.386e-05]
[1733213571207,0.63376294,95680.0,95679.0,8.386e-05]
[1733213571913,0.74623709,95680.0,95679.0,0.00108386]
[1733213572120,0.74623709,95680.0,95679.0,0.00208386]
[1733213573317,0.74823709,95680.0,95679.0,0.00108386]
[1733213574319,0.63576294,95680.0,95679.0,0.00108386]
[1733213574618,0.63776294,95680.0,95679.0,0.00108386]
[1733213575019,0.75024426,95680.0,95679.0,8.386e-05]
[1733213575218,0.64176294,95680.0,95679.0,8.386e-05]
[1733213575916,0.64576294,95680.0,95679.0,0.00108386]
[1733213576618,0.7582444,95680.0,95679.0,0.00108386]
[1733213576822,0.7914444,95680.0,95679.0,0.00108386]
[1733213577210,0.67896294,95680.0,95679.0,0.00108386]
[1733213578017,0.79144921,95680.0,95679.0,0.00108386]
[1733213578215,0.79144947,95680.0,95679.0,0.00108386]
[1733213579018,0.67896294,95680.0,95679.0,0.00108386]
[1733213580714,0.79145173,95680.0,95660.0,0.052257]
[1733213580918,0.052257,95662.0,95660.0,0.052257]
[1733213581418,0.15743401,95661.0,95660.0,0.052257]
[1733213581815,0.1575074,95661.0,95660.0,0.052257]
[1733213582813,0.1575074,95661.0,95660.0,0.053257]
[1733213583725,0.1839392,95661.0,95660.0,0.053257]
[1733213584122,0.1839392,95661.0,95660.0,0.001]
[1733213584623,0.1839392,95661.0,95660.0,0.002]
[1733213584921,0.1839392,95661.0,95638.0,0.02091689]
[1733213585220,0.1839392,95661.0,95643.0,0.052266]
[1733213585221,0.3608,95644.0,95643.0,0.052266]
[1733213585632,0.51851269,95644.0,95643.0,0.052266]
[1733213586625,0.51951269,95644.0,95643.0,0.061266]
[1733213586919,0.51951269,95644.0,95643.0,0.066266]
[1733213588320,0.51951269,95644.0,95643.0,0.014]
[1733213597727,0.57177669,95644.0,95643.0,0.014]
[1733213600824,0.59766199,95644.0,95643.0,0.014]
[1733213601531,0.59666199,95644.0,95643.0,0.005]
[1733213601732,0.59766199,95644.0,95643.0,0.013]
[1733213601936,0.59766199,95644.0,95643.0,0.008]
[1733213602119,0.59766199,95644.0,95643.0,0.013]
[1733213606133,0.51951269,95644.0,95643.0,0.013]
[1733213606434,0.51951269,95644.0,95643.0,0.065265]
[1733213609932,0.51951269,95644.0,95643.0,0.200585]
[1733213609933,0.15871269,95644.0,95643.0,0.200585]
[1733213610136,0.03205834,95644.0,95643.0,0.200585]
[1733213610527,0.0026,95653.0,95652.0,0.05226]
[1733213610726,0.4442814,95660.0,95659.0,0.052256]
[1733213610927,0.44340139,95660.0,95659.0,0.052256]
[1733213611130,0.51823749,95660.0,95659.0,0.052256]
[1733213612435,0.51823749,95660.0,95659.0,0.053256]
[1733213612842,0.51823749,95660.0,95659.0,0.001]
[1733213614443,0.55093749,95660.0,95659.0,0.001]
[1733213624739,0.51823749,95660.0,95659.0,0.001]
[1733213634144,0.54423966,95660.0,95659.0,0.001]
[1733213634942,0.64354966,95660.0,95659.0,0.001]
[1733213640945,0.67574966,95660.0,95659.0,0.001]
[1733213641141,0.92348368,95660.0,95659.0,0.001]
[1733213641944,0.81098966,95660.0,95659.0,0.001]
[1733213645346,0.81098966,95660.0,95654.0,0.052258]
[1733213645541,0.052257,95656.0,95655.0,0.052257]
[1733213645952,0.20947369,95656.0,95655.0,0.052257]
[1733213647249,0.21247369,95656.0,95655.0,0.052257]
[1733213647756,0.21347369,95656.0,95655.0,0.052257]
[1733213647950,0.3259715,95656.0,95655.0,0.052257]
[1733213648154,0.3468845,95656.0,95655.0,0.052257]
[1733213648353,0.23438669,95656.0,95655.0,0.052257]
[1733213649848,0.23438669,95656.0,95651.0,0.05226]
[1733213650049,0.052258,95654.0,95651.0,0.05226]
[1733213650350,0.15614558,95653.0,95651.0,0.05226]
[1733213651352,0.001,95654.0,95653.0,0.052258]
[1733213651753,0.15649966,95654.0,95653.0,0.052258]
[1733213652257,0.15745431,95655.0,95653.0,0.052258]
[1733213652460,0.052258,95655.0,95653.0,0.052258]
[1733213652657,0.20971231,95655.0,95653.0,0.052258]
[1733213653450,0.002,95654.0,95653.0,0.052258]
[1733213653846,0.15777702,95654.0,95653.0,0.052258]
[1733213654652,0.16077702,95654.0,95653.0,0.052258]
[1733213658462,0.27327774,95654.0,95653.0,0.052258]
[1733213659161,0.16077702,95654.0,95653.0,0.052258]
[1733213662558,0.26008702,95654.0,95653.0,0.052258]
[1733213671764,0.33326702,95654.0,95653.0,0.052258]
[1733213674569,0.33326702,95654.0,95653.0,0.187298]
[1733213677072,0.33326702,95654.0,95653.0,0.052258]
[1733213680771,0.33326702,95654.0,95647.0,0.052262]
[1733213680967,0.052261,95649.0,95641.0,0.031]
[1733213681173,0.084262,95648.0,95644.0,0.052263]
[1733213681370,0.24173879,95648.0,95644.0,0.052263]
[1733213681672,0.052262,95647.0,95644.0,0.052263]
[1733213682073,0.18947679,95648.0,95639.0,0.052266]
[1733213682074,0.413063,95645.0,95639.0,0.052266]
[1733213682376,0.15742364,95644.0,95639.0,0.052266]
[1733213682572,0.15742364,95644.0,95633.0,0.13668607]
[1733213682773,0.16540302,95643.0,95641.0,0.056265]
[1733213682978,0.15742364,95644.0,95643.0,0.052264]
[1733213683196,0.15633547,95642.0,95641.0,0.056265]
[1733213683477,0.25565547,95644.0,95643.0,0.052264]
[1733213683788,0.09932,95644.0,95643.0,0.052264]
[1733213684080,0.25565547,95644.0,95643.0,0.052264]
[1733213684973,0.25565547,95644.0,95643.0,0.07893951]
[1733213685173,0.25565547,95644.0,95643.0,0.08193951]
[1733213685373,0.25565547,95644.0,95643.0,0.08393951]
[1733213701585,0.32883547,95644.0,95643.0,0.08393951]
[1733213706288,0.05224,95664.0,95643.0,0.38393951]
[1733213706581,0.05484,95664.0,95659.0,0.052256]
[1733213706883,0.05224,95663.0,95660.0,0.13496]
[1733213707287,0.1573155,95661.0,95660.0,0.13496]
[1733213707786,0.1623155,95661.0,95660.0,0.13496]
[1733213709101,0.1593155,95661.0,95660.0,0.16173483]
[1733213709285,0.1653155,95661.0,95660.0,0.16173483]
[1733213713493,0.1653155,95661.0,95659.0,0.052256]
[1733213714888,0.1653155,95661.0,95659.0,0.08008765]
[1733213715095,0.1633155,95661.0,95659.0,0.08008765]
[1733213715395,0.1653155,95661.0,95659.0,0.08008765]
[1733213715590,0.1593155,95661.0,95659.0,0.08008765]
[1733213715789,0.1643155,95661.0,95659.0,0.08008765]
[1733213721690,0.07002,95660.0,95659.0,0.08008765]
[1733213721994,0.22783408,95660.0,95659.0,0.08008765]
[1733213722899,0.23483408,95660.0,95659.0,0.08008765]
[1733213724493,0.23483408,95660.0,95659.0,0.21500765]
[1733213725996,0.23483408,95660.0,95659.0,0.57580765]
[1733213734302,0.23483408,95660.0,95659.0,0.21500765]
[1733213734797,0.30800408,95660.0,95659.0,0.21500765]
[1733213745196,0.30800408,95660.0,95659.0,0.052256]
[1733213756708,0.25405108,95660.0,95659.0,0.052256]
[1733213756913,0.13863108,95660.0,95659.0,0.052256]
[1733213757107,4.7e-07,95661.0,95659.0,0.052256]
[1733213757308,4.7e-07,95661.0,95660.0,0.3608]
[1733213757703,0.15714799,95661.0,95660.0,0.3608]
[1733213758613,0.16314799,95661.0,95660.0,0.3608]
[1733213758812,0.16514799,95661.0,95660.0,0.3608]
[1733213759210,0.15595953,95661.0,95660.0,0.3608]
[1733213766808,0.15595953,95661.0,95660.0,0.49544]
[1733213772614,0.15595953,95661.0,95660.0,0.3608]
[1733213772822,0.15595953,95661.0,95660.0,0.49544]
[1733213773509,0.008,95661.0,95660.0,0.49544]
[1733213774614,0.16376191,95661.0,95660.0,0.13464]
[1733213775413,0.16376191,95661.0,95659.0,0.07317823]
[1733213775619,0.16376191,95661.0,95660.0,0.03484]
[1733213775815,0.16376191,95661.0,95659.0,0.02092223]